bitfinex-derivatives/quotes_BTCF0:USTF0_20230402
["timestamp","ask_amount","ask_price","bid_price","bid_amount"]
[1680450661115,0.053,28106.0,28103.0,0.08476475]
[1680450661512,0.003,28106.0,28103.0,0.08476475]
[1680450661713,0.0534,28104.0,28102.0,0.38546475]
[1680450662016,0.0534,28104.0,28099.0,0.43886475]
[1680450662211,0.0427,28102.0,28100.0,0.0425]
[1680450662415,0.0427,28102.0,28101.0,0.05]
[1680450662811,0.0427,28102.0,28101.0,0.44704778]
[1680450663217,0.0457,28102.0,28101.0,0.44704778]
[1680450663519,0.0457,28102.0,28101.0,0.39704778]
[1680450664417,0.001,28102.0,28101.0,0.48954778]
[1680450665118,0.001,28102.0,28101.0,0.43954778]
[1680450672311,0.001,28102.0,28101.0,0.48954778]
[1680450672619,0.001,28102.0,28101.0,0.53194778]
[1680450672620,0.02774796,28102.0,28101.0,0.53194778]
[1680450672818,0.05,28110.0,28101.0,0.61734778]
[1680450673017,0.3434,28111.0,28109.0,0.0425]
[1680450673218,0.05,28110.0,28109.0,0.0425]
[1680450673525,0.3434,28111.0,28109.0,0.0425]
[1680450673713,0.0427,28111.0,28109.0,0.0425]
[1680450673917,0.0697,28111.0,28109.0,0.0425]
[1680450675417,0.0427,28110.0,28108.0,0.05]
[1680450675618,0.0927,28111.0,28108.0,0.0925]
[1680450675820,0.1197,28111.0,28108.0,0.0925]
[1680450676021,0.0697,28111.0,28108.0,0.0925]
[1680450676221,0.0577,28111.0,28108.0,0.0425]
[1680450676715,0.0507,28111.0,28108.0,0.0425]
[1680450677127,0.0427,28111.0,28108.0,0.0425]
[1680450677323,0.0507,28111.0,28108.0,0.0425]
[1680450677724,0.0507,28111.0,28108.0,0.0925]
[1680450678020,0.0507,28111.0,28108.0,0.0425]
[1680450678728,0.0506,28111.0,28108.0,0.0927]
[1680450679530,0.0506,28111.0,28108.0,0.0427]
[1680450680023,0.0506,28111.0,28108.0,0.0927]
[1680450680226,0.0506,28111.0,28108.0,0.0427]
[1680450680426,0.0149795,28110.0,28108.0,0.0427]
[1680450680825,0.4427,28109.0,28102.0,0.0427]
[1680450681023,0.0425,28104.0,28103.0,0.05]
[1680450681330,0.05,28106.0,28103.0,0.0427]
[1680450681525,0.05,28106.0,28102.0,0.05]
[1680450681725,0.05,28106.0,28101.0,0.3507]
[1680450682029,0.0925,28106.0,28104.0,0.0427]
[1680450682230,0.0427,28105.0,28103.0,0.0437]
[1680450682826,0.0427,28105.0,28103.0,0.0427]
[1680450683134,0.0427,28104.0,28100.0,0.05]
[1680450683429,0.0427,28102.0,28099.0,0.14548438]
[1680450683823,0.0427,28102.0,28100.0,0.39686033]
[1680450684033,0.0427,28102.0,28101.0,0.05]
[1680450685028,0.0437,28102.0,28101.0,0.001]
[1680450685228,0.0437,28102.0,28101.0,0.051]
[1680450685943,0.0437,28102.0,28101.0,0.001]
[1680450687628,0.06555921,28102.0,28101.0,0.001]
[1680450692133,0.02285921,28102.0,28101.0,0.001]
[1680450702242,0.06535921,28102.0,28101.0,0.3017]
[1680450712047,0.06515921,28102.0,28101.0,0.3017]
[1680450713945,0.06515921,28102.0,28101.0,0.001]
[1680450718351,0.02285921,28102.0,28101.0,0.3443]
[1680450718546,0.02285921,28102.0,28101.0,0.3943]
[1680450718746,0.02285921,28102.0,28101.0,0.3443]
[1680450719047,0.02285921,28102.0,28101.0,0.39416485]
[1680450719550,0.02285921,28102.0,28101.0,0.34416485]
[1680450719947,0.06535921,28102.0,28101.0,0.30156485]
[1680450720850,0.06535921,28102.0,28101.0,0.67444162]
[1680450722056,0.02285921,28102.0,28101.0,0.71704162]
[1680450723553,0.06555921,28102.0,28101.0,0.67444162]
[1680450724548,0.06555921,28102.0,28101.0,0.30156485]
[1680450729845,0.56267782,28108.0,28102.0,0.42115]
[1680450729846,0.12657782,28108.0,28102.0,0.42115]
[1680450730050,0.29426415,28112.0,28107.0,0.6014]
[1680450730251,0.12657782,28114.0,28111.0,0.2947]
[1680450730447,0.12657782,28115.0,28111.0,0.2947]
[1680450730749,0.05,28113.0,28111.0,0.2947]
[1680450730955,0.05,28113.0,28112.0,0.0924]
[1680450731648,0.016,28113.0,28112.0,0.0924]
[1680450731849,0.016,28113.0,28112.0,0.0424]
[1680450732157,0.016,28113.0,28111.0,0.2957]
[1680450732650,0.016,28113.0,28112.0,0.05]
[1680450733352,0.009,28113.0,28112.0,0.051]
[1680450733756,0.0529,28114.0,28112.0,0.05]
[1680450733957,0.0529,28114.0,28112.0,0.054]
[1680450734457,0.0529,28114.0,28112.0,0.004]
[1680450734846,0.0559,28114.0,28111.0,0.5954]
[1680450735759,0.0559,28114.0,28112.0,0.05]
[1680450736758,0.0529,28114.0,28111.0,0.5954]
[1680450736959,0.0559,28114.0,28111.0,0.2947]
[1680450737757,0.0529,28114.0,28111.0,0.2947]
[1680450737955,0.0559,28114.0,28112.0,0.05]
[1680450738957,0.0559,28114.0,28111.0,0.2947]
[1680450739754,0.0529,28114.0,28111.0,0.2947]
[1680450739954,0.0559,28114.0,28111.0,0.2947]
[1680450740153,0.0529,28114.0,28111.0,0.2947]
[1680450740360,0.0559,28114.0,28111.0,0.2947]
[1680450742055,0.003,28114.0,28111.0,0.2947]
[1680450743364,0.003,28114.0,28112.0,0.05]
[1680450743568,0.003,28114.0,28112.0,0.42176734]
[1680450743858,0.022,28114.0,28112.0,0.42176734]
[1680450744567,0.022,28114.0,28112.0,0.37176734]
[1680450745167,0.009,28114.0,28112.0,0.37276734]
[1680450748965,0.009,28114.0,28112.0,0.001]
[1680450749761,0.3097,28114.0,28112.0,0.001]
[1680450749961,0.05,28113.0,28112.0,0.001]
[1680450751469,0.052,28113.0,28111.0,0.0534]
[1680450751668,0.105,28113.0,28108.0,0.0534]
[1680450752161,0.105,28113.0,28104.0,0.4534]
[1680450752162,0.3007,28111.0,28106.0,0.3541]
[1680450752360,0.3007,28111.0,28106.0,0.0534]
[1680450752555,0.05,28110.0,28106.0,0.0534]
[1680450752968,0.05,28110.0,28108.0,0.001]
[1680450754166,0.066,28110.0,28106.0,0.0544]
[1680450754669,0.053,28109.0,28108.0,0.004]
[1680450755066,0.053,28109.0,28106.0,0.001]
[1680450755365,0.05,28108.0,28106.0,0.001]
[1680450755565,0.05,28108.0,28104.0,0.0534]
[1680450755963,0.3507,28108.0,28104.0,0.0534]
[1680450756761,0.3007,28108.0,28104.0,0.0534]
[1680450757069,0.05,28107.0,28106.0,0.001]
[1680450757267,0.05,28107.0,28104.0,0.0544]
[1680450758367,0.052,28107.0,28104.0,0.0534]
[1680450758769,0.05,28107.0,28104.0,0.0534]
[1680450758965,0.009,28107.0,28104.0,0.0544]
[1680450759158,0.059,28107.0,28104.0,0.0544]
[1680450762063,0.3007,28105.0,28104.0,0.001]
[1680450762570,0.36368772,28105.0,28104.0,0.001]
[1680450763559,0.36368772,28105.0,28104.0,0.004]
[1680450764467,0.37268772,28105.0,28104.0,0.001]
[1680450767573,0.07198772,28105.0,28104.0,0.001]
[1680450768875,0.02198772,28105.0,28104.0,0.001]
[1680450779783,0.02198772,28105.0,28104.0,0.00081359]
[1680450792100,0.02198772,28105.0,28104.0,0.04351359]
[1680450800994,0.32268772,28105.0,28099.0,0.05278438]
[1680450801198,0.32268772,28105.0,28100.0,0.0424]
[1680450801199,0.0426,28102.0,28100.0,0.0424]
[1680450801493,0.36425724,28101.0,28100.0,0.0424]
[1680450802098,0.36425724,28101.0,28099.0,0.0427]
[1680450802298,0.05,28100.0,28099.0,0.0427]
[1680450803495,0.002,28100.0,28099.0,0.0527]
[1680450803696,0.052,28100.0,28099.0,0.0527]
[1680450803901,0.05,28100.0,28099.0,0.0427]
[1680450804192,0.052,28100.0,28099.0,0.0517]
[1680450804399,0.05,28100.0,28099.0,0.0427]
[1680450804592,0.0947,28100.0,28096.0,0.0425]
[1680450804795,0.3007,28098.0,28096.0,0.0425]
[1680450804989,0.05,28097.0,28095.0,0.3007]
[1680450805193,0.05,28097.0,28096.0,0.0927]
[1680450805595,0.3007,28098.0,28096.0,0.0427]
[1680450806194,0.05,28097.0,28096.0,0.0427]
[1680450807303,0.053,28097.0,28096.0,0.0427]
[1680450807504,0.07333414,28097.0,28096.0,0.0427]
[1680450808304,0.11593414,28097.0,28093.0,0.0927]
[1680450808503,0.0427,28095.0,28093.0,0.0427]
[1680450809599,0.0427,28095.0,28093.0,0.0437]
[1680450809600,0.0457,28095.0,28093.0,0.0437]
[1680450812221,0.003,28095.0,28094.0,0.0427]
[1680450813413,0.0425,28096.0,28094.0,0.0427]
[1680450813620,0.003,28095.0,28094.0,0.0437]
[1680450813814,0.053,28095.0,28094.0,0.0437]
[1680450814118,0.003,28095.0,28094.0,0.0437]
[1680450816316,0.053,28095.0,28094.0,0.0437]
[1680450816512,0.003,28095.0,28094.0,0.0437]
[1680450820125,0.053,28095.0,28094.0,0.0437]
[1680450820628,0.003,28095.0,28094.0,0.0437]
[1680450822325,0.11303414,28097.0,28094.0,0.0437]
[1680450822513,0.02032458,28095.0,28094.0,0.0437]
[1680450822718,0.05,28096.0,28094.0,0.0437]
[1680450823025,0.004,28095.0,28094.0,0.0427]
[1680450824930,0.0467,28095.0,28092.0,0.3434]
[1680450825128,0.004,28095.0,28094.0,0.0425]
[1680450827433,0.01,28095.0,28094.0,0.0425]
[1680450827831,0.004,28095.0,28094.0,0.0425]
[1680450828633,0.014,28095.0,28094.0,0.0425]
[1680450829135,0.01,28095.0,28094.0,0.0425]
[1680450830131,0.0927,28096.0,28094.0,0.0425]
[1680450830434,0.01,28095.0,28094.0,0.0425]
[1680450830837,0.01,28095.0,28093.0,0.05]
[1680450831028,0.01,28095.0,28094.0,0.3861]
[1680450831236,0.017,28096.0,28094.0,0.4712]
[1680450831436,0.8496,28102.0,28095.0,0.0854]
[1680450831736,0.0427,28103.0,28100.0,0.3434]
[1680450831934,0.05,28101.0,28100.0,0.3434]
[1680450832233,0.05,28101.0,28100.0,0.343]
[1680450832429,0.05,28103.0,28100.0,0.343]
[1680450832626,0.05,28103.0,28102.0,0.0427]
[1680450833431,0.065,28103.0,28102.0,0.0427]
[1680450833833,0.015,28103.0,28102.0,0.0427]
[1680450834035,0.008,28103.0,28102.0,0.0437]
[1680450834438,0.002,28103.0,28102.0,0.0427]
[1680450836340,0.0447,28103.0,28100.0,0.3007]
[1680450836535,0.0427,28101.0,28099.0,0.0427]
[1680450837336,0.0507,28101.0,28099.0,0.0437]
[1680450837542,0.02033342,28100.0,28099.0,0.0437]
[1680450837944,0.07033342,28100.0,28099.0,0.0437]
[1680450839236,0.07233342,28100.0,28099.0,0.0427]
[1680450840040,0.07033342,28100.0,28099.0,0.0427]
[1680450840344,0.07233342,28100.0,28099.0,0.0427]
[1680450840543,0.07833342,28100.0,28099.0,0.0437]
[1680450841042,0.07033342,28100.0,28099.0,0.0427]
[1680450841245,0.07233342,28100.0,28099.0,0.0427]
[1680450842141,0.02033342,28100.0,28099.0,0.0424]
[1680450842335,0.02833342,28100.0,28099.0,0.0434]
[1680450842742,0.02233342,28100.0,28099.0,0.0424]
[1680450843247,0.02833342,28100.0,28099.0,0.0434]
[1680450843634,0.02233342,28100.0,28099.0,0.0424]
[1680450845141,0.02233342,28100.0,28099.0,0.0427]
[1680450845341,0.02233342,28100.0,28099.0,0.0927]
[1680450845744,0.02233342,28100.0,28099.0,0.4359]
[1680450845937,0.3007,28104.0,28100.0,0.0854]
[1680450846242,1.1429,28107.0,28103.0,0.0427]
[1680450846449,0.3433,28107.0,28105.0,0.0427]
[1680450847847,0.0606,28107.0,28105.0,0.0427]
[1680450848244,0.0426,28107.0,28105.0,0.0427]
[1680450848549,0.0606,28107.0,28105.0,0.0447]
[1680450849946,0.018,28107.0,28106.0,0.0425]
[1680450850241,0.018,28107.0,28106.0,0.0925]
[1680450850744,0.0427,28110.0,28106.0,0.0925]
[1680450850943,0.018,28107.0,28106.0,0.052]
[1680450851144,0.018,28107.0,28106.0,0.0944]
[1680450851651,0.018,28107.0,28106.0,0.2225]
[1680450851943,0.00481983,28107.0,28106.0,0.5232]
[1680450852149,0.00481983,28107.0,28106.0,0.93623667]
[1680450853850,0.004,28107.0,28106.0,0.93523667]
[1680450859254,0.004,28107.0,28106.0,0.086]
[1680450862151,0.004,28107.0,28106.0,0.001]
[1680450863056,0.054,28107.0,28106.0,0.001]
[1680450863254,0.3547,28107.0,28103.0,0.0534]
[1680450863455,0.05,28106.0,28103.0,0.0534]
[1680450864352,0.055,28106.0,28103.0,0.0534]
[1680450865256,0.3007,28104.0,28100.0,0.3541]
[1680450865451,0.3007,28104.0,28100.0,0.0534]
[1680450865651,0.00170379,28103.0,28100.0,0.0534]
[1680450865851,0.05170379,28103.0,28100.0,0.0534]
[1680450867060,0.05170379,28103.0,28100.0,0.0664]
[1680450867454,0.05670379,28103.0,28100.0,0.0554]
[1680450867653,0.06281834,28103.0,28100.0,0.0554]
[1680450872264,0.11621834,28103.0,28100.0,0.002]
[1680450882176,0.06281834,28103.0,28100.0,0.002]
[1680450882378,0.01281834,28103.0,28102.0,0.0532]
[1680450882976,0.01281834,28103.0,28102.0,0.053]
[1680450883271,0.01281834,28103.0,28102.0,0.103]
[1680450883475,0.00781834,28103.0,28102.0,0.103]
[1680450883777,0.01281834,28103.0,28102.0,0.105]
[1680450884276,0.01281834,28103.0,28102.0,0.055]
[1680450884864,0.01281834,28103.0,28102.0,0.002]
[1680450885070,0.01281834,28103.0,28101.0,0.0534]
[1680450885476,0.00781834,28103.0,28102.0,0.006]
[1680450885872,0.3007,28103.0,28102.0,0.006]
[1680450886075,0.31481673,28103.0,28101.0,0.0534]
[1680450886274,0.05,28102.0,28101.0,0.0534]
[1680450887976,0.05,28102.0,28101.0,0.0554]
[1680450888182,0.05,28102.0,28098.0,0.0532]
[1680450888377,0.3007,28100.0,28098.0,0.0532]
[1680450888678,0.05,28099.0,28095.0,0.053]
[1680450889175,0.05,28099.0,28098.0,0.001]
[1680450889373,0.05,28099.0,28095.0,0.053]
[1680450889684,0.05,28099.0,28095.0,0.002]
[1680450889685,0.1114,28099.0,28095.0,0.002]
[1680450889881,0.1114,28099.0,28095.0,0.052]
[1680450890183,0.1114,28099.0,28095.0,0.002]
[1680450891081,0.1114,28099.0,28095.0,0.052]
[1680450891282,0.1114,28099.0,28095.0,0.002]
[1680450891478,0.1114,28099.0,28095.0,0.052]
[1680450891674,0.1034,28099.0,28094.0,0.1032]
[1680450891879,0.1114,28099.0,28095.0,0.002]
[1680450892082,0.0532,28097.0,28095.0,0.052]
[1680450892283,0.05,28096.0,28095.0,0.002]
[1680450893377,0.05,28096.0,28093.0,0.3007]
[1680450893575,0.05,28096.0,28095.0,0.002]
[1680450893774,0.05,28096.0,28094.0,0.05]
[1680450894078,0.058,28096.0,28095.0,0.002]
[1680450895786,0.008,28096.0,28095.0,0.002]
[1680450895984,0.058,28096.0,28095.0,0.002]
[1680450896187,0.3587,28096.0,28095.0,0.002]
[1680450896785,0.3587,28096.0,28089.0,0.05]
[1680450896786,0.05,28095.0,28089.0,0.1032]
[1680450896983,0.05,28093.0,28089.0,0.1032]
[1680450897384,0.05,28093.0,28090.0,0.40112431]
[1680450897585,0.0531,28094.0,28091.0,0.05]
[1680450897586,0.01557811,28092.0,28091.0,0.05]
[1680450897782,0.0531,28094.0,28091.0,0.05]
[1680450897982,0.001,28093.0,28091.0,0.05]
[1680450898183,0.051,28093.0,28091.0,0.05]
[1680450898383,0.051,28093.0,28090.0,0.05]
[1680450899090,0.05,28093.0,28090.0,0.05]
[1680450899279,0.0531,28094.0,28091.0,0.006]
[1680450899790,0.01,28093.0,28090.0,0.052]
[1680450899987,0.06,28093.0,28090.0,0.05]
[1680450900193,0.3507,28093.0,28091.0,0.002]
[1680450900492,0.3507,28093.0,28089.0,0.0532]
[1680450900687,0.3607,28093.0,28090.0,0.052]
[1680450900892,0.3607,28093.0,28090.0,0.002]
[1680450901085,0.3607,28093.0,28091.0,0.002]
[1680450902584,0.3607,28093.0,28089.0,0.0532]
[1680450902585,0.3507,28093.0,28089.0,0.0532]
[1680450902788,0.3607,28093.0,28090.0,0.002]
[1680450903091,0.0534,28092.0,28087.0,0.3539]
[1680450903284,0.3607,28093.0,28091.0,0.002]
[1680450903285,0.4141,28093.0,28091.0,0.002]
[1680450903484,0.1034,28092.0,28084.0,0.1561738]
[1680450903686,0.0534,28089.0,28085.0,0.05]
[1680450903996,0.05,28088.0,28085.0,0.05]
[1680450904196,0.05,28088.0,28086.0,0.37757824]
[1680450904390,0.05,28088.0,28087.0,0.05]
[1680450904788,0.05,28088.0,28085.0,0.45360748]
[1680450905092,0.05,28088.0,28087.0,0.001]
[1680450905493,0.051,28088.0,28087.0,0.012]
[1680450905994,0.1043,28088.0,28087.0,0.012]
[1680450906182,0.12518741,28088.0,28087.0,0.012]
[1680450908598,0.48078741,28088.0,28087.0,0.012]
[1680450911495,0.53372417,28088.0,28087.0,0.012]
[1680450912897,0.53372417,28088.0,28081.0,0.103]
[1680450912898,0.05,28087.0,28081.0,0.103]
[1680450913103,0.3007,28086.0,28081.0,0.103]
[1680450913399,0.05,28085.0,28081.0,0.103]
[1680450913905,0.3007,28086.0,28081.0,0.117]
[1680450914101,0.3027,28086.0,28081.0,0.117]
[1680450914300,0.3007,28086.0,28081.0,0.103]
[1680450914503,0.052,28085.0,28081.0,0.117]
[1680450914704,0.002,28085.0,28081.0,0.117]
[1680450914892,0.002,28085.0,28081.0,0.103]
[1680450915094,0.3027,28086.0,28081.0,0.117]
[1680450915604,0.02841752,28085.0,28083.0,0.3007]
[1680450915812,0.02841752,28085.0,28084.0,0.1034]
[1680450916007,0.02841752,28085.0,28084.0,0.80386763]
[1680450916305,0.002,28085.0,28084.0,0.80386763]
[1680450917005,0.002,28086.0,28085.0,0.1032]
[1680450917306,0.002,28086.0,28085.0,0.52866196]
[1680450917504,0.103,28094.0,28086.0,0.05]
[1680450917702,0.103,28094.0,28090.0,0.05]
[1680450917906,0.3007,28095.0,28093.0,0.0534]
[1680450918108,0.3288,28099.0,28094.0,0.053]
[1680450918309,0.3507,28100.0,28095.0,0.053]
[1680450918605,0.86172953,28104.0,28095.0,0.053]
[1680450918606,0.05444974,28104.0,28099.0,0.6545]
[1680450918807,0.12657782,28107.0,28103.0,0.3538]
[1680450919001,0.3007,28109.0,28106.0,0.0534]
[1680450919196,0.3007,28109.0,28106.0,0.0474]
[1680450919601,0.35540279,28110.0,28106.0,0.0474]
[1680450919602,0.3507,28110.0,28106.0,0.0474]
[1680450919998,0.05,28108.0,28106.0,0.3481]
[1680450920404,0.05,28108.0,28107.0,0.74849502]
[1680450920916,0.021,28110.0,28107.0,0.79849502]
[1680450921205,0.021,28110.0,28109.0,0.053]
[1680450921412,0.05,28113.0,28109.0,0.053]
[1680450922298,0.05,28114.0,28110.0,0.05]
[1680450922807,0.3507,28114.0,28109.0,0.053]
[1680450923209,0.3717,28114.0,28110.0,0.001]
[1680450923810,0.3717,28114.0,28109.0,0.054]
[1680450924111,0.3717,28114.0,28110.0,0.00703802]
[1680450924310,0.3507,28114.0,28109.0,0.053]
[1680450924508,0.3717,28114.0,28110.0,0.001]
[1680450924809,0.3717,28114.0,28110.0,0.00803778]
[1680450925008,0.3717,28114.0,28110.0,0.001]
[1680450925805,0.3717,28114.0,28109.0,0.053]
[1680450926008,0.3717,28114.0,28109.0,0.054]
[1680450926208,0.3717,28114.0,28110.0,0.00703697]
[1680450926409,0.3717,28114.0,28110.0,0.00803697]
[1680450926616,0.3717,28114.0,28110.0,0.001]
[1680450926804,0.0534,28112.0,28109.0,0.001]
[1680450927004,0.05,28111.0,28109.0,0.001]
[1680450927204,0.05,28111.0,28110.0,0.0070364]
[1680450927804,0.05,28111.0,28110.0,0.0080364]
[1680450928910,0.05,28111.0,28110.0,0.0070364]
[1680450929211,0.059,28111.0,28110.0,0.001]
[1680450930813,0.4128,28111.0,28104.0,0.053]
[1680450931006,0.0531,28106.0,28101.0,0.3541]
[1680450931202,0.05,28105.0,28101.0,0.3541]
[1680450931609,0.05,28105.0,28102.0,0.3760429]
[1680450932304,0.05,28105.0,28101.0,0.0534]
[1680450932508,0.05,28105.0,28101.0,0.0684]
[1680450932908,0.052,28105.0,28101.0,0.0534]
[1680450933314,0.065,28105.0,28101.0,0.0544]
[1680450933715,0.05,28105.0,28101.0,0.0534]
[1680450934015,0.052,28105.0,28101.0,0.0534]
[1680450934412,0.059,28105.0,28101.0,0.0544]
[1680450935410,0.05,28105.0,28101.0,0.0534]
[1680450935610,0.059,28105.0,28101.0,0.0544]
[1680450935917,0.065,28105.0,28101.0,0.0544]
[1680450936311,0.065,28105.0,28101.0,0.0534]
[1680450936513,0.009,28105.0,28104.0,0.0532]
[1680450936912,0.015,28105.0,28104.0,0.1032]
[1680450937405,0.015,28105.0,28104.0,0.0532]
[1680450938315,0.015,28105.0,28104.0,0.1032]
[1680450938518,0.015,28105.0,28104.0,0.0542]
[1680450938715,0.015,28105.0,28104.0,0.1042]
[1680450938916,0.05,28110.0,28104.0,0.4041]
[1680450939121,0.002,28105.0,28104.0,0.3507]
[1680450939418,0.002,28105.0,28104.0,0.758]
[1680450939615,0.7996,28112.0,28104.0,1.15950796]
[1680450939916,0.05,28114.0,28111.0,0.05]
[1680450940518,0.05,28114.0,28110.0,0.3007]
[1680450941109,0.4038,28115.0,28111.0,0.05]
[1680450941317,0.022,28112.0,28111.0,0.05]
[1680450941623,0.05,28114.0,28111.0,0.05813494]
[1680450941819,0.065,28114.0,28111.0,0.00813494]
[1680450942209,0.002,28112.0,28111.0,0.06153494]
[1680450944119,0.052,28114.0,28111.0,0.06153494]
[1680450944316,0.3507,28115.0,28113.0,0.053]
[1680450944522,0.05,28114.0,28113.0,0.053]
[1680450944818,0.05,28115.0,28113.0,0.3537]
[1680450945021,0.05462104,28116.0,28114.0,0.0534]
[1680450945321,0.05,28118.0,28115.0,0.0534]
[1680450945524,0.05,28118.0,28117.0,0.053]
[1680450946415,0.05,28118.0,28115.0,0.01632697]
[1680450947124,0.072,28118.0,28117.0,0.0544]
[1680450947624,0.072,28118.0,28115.0,0.01732697]
[1680450948024,0.072,28118.0,28117.0,0.001]
[1680450948525,0.072,28118.0,28115.0,0.01732697]
[1680450948724,0.3007,28116.0,28115.0,0.01732697]
[1680450949832,0.3007,28116.0,28115.0,0.01632697]
[1680450950223,0.015,28116.0,28115.0,0.01732697]
[1680450951728,0.015,28116.0,28115.0,0.07072697]
[1680450952124,0.015,28116.0,28115.0,0.01732697]
[1680450956233,0.06838636,28116.0,28115.0,0.01732697]
[1680450959732,0.06838636,28116.0,28115.0,0.07072697]
[1680450960728,0.015,28116.0,28115.0,0.07072697]
[1680450963126,0.015,28116.0,28115.0,0.12372697]
[1680450963334,0.009,28116.0,28115.0,0.12372697]
[1680450963935,0.009,28116.0,28115.0,0.07032697]
[1680450965243,0.009,28116.0,28115.0,0.37102697]
[1680450965733,0.009,28116.0,28115.0,0.42412697]
[1680450966134,0.009,28116.0,28115.0,0.37102697]
[1680450967035,0.009,28116.0,28115.0,0.42442697]
[1680450967632,0.00795371,28116.0,28115.0,0.42442697]
[1680450968030,0.0069794,28116.0,28115.0,0.37102697]
[1680450968726,0.00597596,28116.0,28115.0,0.37102697]
[1680450968932,0.0051495,28116.0,28115.0,0.37102697]
[1680450969131,0.00408177,28116.0,28115.0,0.37102697]
[1680450969532,0.00302794,28116.0,28115.0,0.37102697]
[1680450969835,0.00186156,28116.0,28115.0,0.37102697]
[1680450970031,0.00068687,28116.0,28115.0,0.37102697]
[1680450970237,0.05,28121.0,28116.0,0.05]
[1680450970442,0.05,28121.0,28119.0,0.3541]
[1680450970629,0.17657782,28122.0,28120.0,0.05]
[1680450970940,0.12657782,28122.0,28120.0,0.053]
[1680450971141,0.12657782,28122.0,28120.0,0.103]
[1680450971342,0.12657782,28122.0,28121.0,0.053]
[1680450971649,0.013,28122.0,28121.0,0.3101]
[1680450971937,0.013,28122.0,28121.0,0.1069]
[1680450972141,0.013,28122.0,28121.0,0.3546]
[1680450972337,0.013,28122.0,28121.0,0.354]
[1680450972741,0.013,28122.0,28121.0,0.6098]
[1680450972944,0.012,28122.0,28121.0,0.79753754]
[1680450974235,0.05,28124.0,28122.0,0.05]
[1680450974441,0.05,28124.0,28123.0,0.1066]
[1680450974642,0.05,28124.0,28123.0,0.45938352]
[1680450975232,0.05,28125.0,28123.0,0.45938352]
[1680450975442,0.05,28125.0,28124.0,0.0531]
[1680450976241,0.001,28125.0,28124.0,0.0531]
[1680450976440,0.051,28125.0,28124.0,0.3538]
[1680450976643,0.001,28125.0,28124.0,0.3558]
[1680450977037,0.051,28125.0,28124.0,0.3558]
[1680450977743,0.051,28125.0,28124.0,0.002]
[1680450977940,0.1041,28125.0,28124.0,0.002]
[1680450980743,0.051,28125.0,28124.0,0.002]
[1680450981642,0.1043,28125.0,28124.0,0.02065722]
[1680450981837,0.051,28125.0,28124.0,0.07395722]
[1680450982042,0.051,28125.0,28124.0,0.002]
[1680450982243,0.104,28125.0,28124.0,0.02065698]
[1680450982446,0.104,28125.0,28124.0,0.002]
[1680450982846,0.051,28125.0,28124.0,0.002]
[1680450983246,0.051,28125.0,28124.0,0.0553]
[1680450983448,0.051,28125.0,28124.0,0.07395636]
[1680450983750,0.051,28125.0,28124.0,0.02065636]
[1680450983751,0.1043,28125.0,28124.0,0.02065636]
[1680450984045,0.1043,28125.0,28124.0,0.002]
[1680450984345,0.23087782,28125.0,28124.0,0.002]
[1680450985553,0.17757782,28125.0,28124.0,0.002]
[1680450985845,0.17757782,28125.0,28124.0,0.0553]
[1680450986255,0.17757782,28125.0,28124.0,0.07395506]
[1680450986448,0.23087782,28125.0,28124.0,0.02065506]
[1680450986636,0.23087782,28125.0,28124.0,0.002]
[1680450986842,0.17757782,28125.0,28124.0,0.0551]
[1680450987348,0.47827782,28125.0,28124.0,0.002]
[1680450987645,0.47930877,28125.0,28124.0,0.002]
[1680450987855,0.3517,28125.0,28124.0,0.002]
[1680450990246,0.405,28125.0,28124.0,0.002]
[1680450990948,0.3517,28125.0,28124.0,0.002]
[1680450991147,0.405,28125.0,28124.0,0.002]
[1680450991346,0.3517,28125.0,28124.0,0.002]
[1680450991547,0.405,28125.0,28124.0,0.002]
[1680450991944,0.3517,28125.0,28124.0,0.002]
[1680450992150,0.405,28125.0,28124.0,0.002]
[1680450992851,0.051,28125.0,28124.0,0.0553]
[1680450993051,0.12865177,28125.0,28124.0,0.002]
[1680450993240,0.18165177,28125.0,28124.0,0.002]
[1680450994556,0.12865177,28125.0,28124.0,0.002]
[1680450995856,0.12865177,28125.0,28124.0,0.0553]
[1680450996248,0.12865177,28125.0,28124.0,0.07395016]
[1680450996650,0.18155177,28125.0,28124.0,0.02065016]
[1680450997157,0.12865177,28125.0,28124.0,0.002]
[1680450997757,0.12865177,28125.0,28124.0,0.0553]
[1680450998050,0.12865177,28125.0,28124.0,0.02064931]
[1680450998254,0.12865177,28125.0,28124.0,0.07394931]
[1680450998451,0.12865177,28125.0,28124.0,0.02064931]
[1680451000250,0.12865177,28125.0,28124.0,0.0553]
[1680451000450,0.12865177,28125.0,28124.0,0.0206481]
[1680451000748,0.18195177,28125.0,28124.0,0.0206481]
[1680451000948,0.12865177,28125.0,28124.0,0.0739481]
[1680451001344,0.12865177,28125.0,28124.0,0.0206481]
[1680451003559,0.001,28125.0,28124.0,0.0206481]
[1680451006161,0.16868633,28125.0,28124.0,0.0206481]
[1680451009358,0.16868633,28125.0,28124.0,0.002]